Cogmind - Beta 13 *** ADVENTURER MODE // 2024.07.07 @ 21:32:39 Player: 7604 Result: Destroyed by as-24740 with Assembled Rifle Performance ------------- Evolutions (0) 0 Regions Visited (4) 800 Robots Destroyed (19) 95 Value Destroyed (401) 401 Prototype IDs (23) 460 Alien Tech Used (0) 0 Bonus (300) 300 TOTAL SCORE: 2056 Bonus ------- Aligned with FarCom 300 Cogmind --------- Core Integrity 0/250 Matter 278/300 Energy 159/160 System Corruption 0% Temperature Cool (0) Movement Treading (240) Ox1 Location -9/Mines Parts ------- > --- POWER (1) -------- Light Nuclear Core > --- PROPULSION (2) --- Light Treads > --- UTILITY (2) ------ Large Storage Unit Hardened Light Armor Plating > --- WEAPON (2) ------- Light Assault Rifle > --- INVENTORY (15) --- Light Ion Engine Light Angular Momentum Engine VTOL Module VTOL Module Improved Heat Sink High-capacity Storage Unit Structural Scanner Experimental Sensor Array ECM Suite Hardened Light Armor Plating Hardened Light Armor Plating Hardened Light Armor Plating AWS/Autocannon Peak State ------------ > --- POWER ------------ Light Nuclear Core > --- PROPULSION ------- Light Treads Light Treads > --- UTILITY ---------- Large Storage Unit Hardened Light Armor Plating > --- WEAPON ----------- Beamcaster Autogun > --- INVENTORY -------- Light Ion Engine Light Angular Momentum Engine Light Treads VTOL Module VTOL Module VTOL Module VTOL Module Heat Sink Structural Scanner Experimental Sensor Array ECM Suite Hardened Light Armor Plating Hardened Light Armor Plating Hardened Light Armor Plating Signal Generator [Rating: 18] Favorites ----------- Power Light Nuclear Core Engine Light Ion Engine Power Core Light Nuclear Core Propulsion Light Treads Treads Light Treads Utility Hardened Light Armor Plating Storage Large Storage Unit Protection Hardened Light Armor Plating Weapon Autogun Energy Gun Beamcaster Ballistic Gun Autogun Build | -11 -10 -10 -10 -9 ------- Run | Yrd Mat Min Exi Min Slots Evolved . | . . . . . Power . | . . . . . Propulsion . | . . . . . Utility . | . . . . . Weapon . | . . . . . Parts Attached 18 | 6 7 3 1 1 Power 5 | 1 3 . . 1 Engine 3 | 1 2 . . . Core 2 | . 1 . . 1 Reactor . | . . . . . Propulsion 3 | 2 . 1 . . Treads 3 | 2 . 1 . . Leg . | . . . . . Wheel . | . . . . . Hover . | . . . . . Flight . | . . . . . Utility 3 | 1 2 . . . Device . | . . . . . Storage 2 | 1 1 . . . Processor . | . . . . . Hackware . | . . . . . Protection 1 | . 1 . . . Artifact . | . . . . . Weapon 7 | 2 2 2 1 . Energy Gun 1 | . . 1 . . Energy Cannon . | . . . . . Ballistic Gun 6 | 2 2 1 1 . Ballistic Cannon . | . . . . . Launcher . | . . . . . Special Weapon . | . . . . . Impact Weapon . | . . . . . Slashing Weapon . | . . . . . Piercing Weapon . | . . . . . Special Melee Weapon . | . . . . . Unidentified Prototypes . | . . . . . Parts Lost 2 | . . . . 2 Power . | . . . . . Propulsion 1 | . . . . 1 Utility . | . . . . . Weapon 1 | . . . . 1 Highest Loss Streak 2 | . . . . 2 To Critical Strikes . | . . . . . Average Slot Usage (%) 99 | . 99 100 99 100 Engine 2 | . 12 . . . Core 11 | . 1 14 14 14 Treads 28 | . 28 28 28 28 Storage 14 | . 14 14 14 14 Protection 13 | . 13 14 14 14 Ballistic Gun 27 | . 28 27 27 28 Naked Turns . | . . . . . Heaviest Build 38 | 11 36 38 34 34 Greatest Support 40 | 40 40 40 40 40 Greatest Overweight (x) 1 | . . 1 . 1 Average Overweight (x) . | . . . . . Largest Inventory Capacity 15 | 8 15 15 15 15 Average Capacity 14 | 7 12 15 15 15 Most Carried 15 | 1 15 15 15 15 Average Carried 13 | . 10 14 14 15 Final Capacity 15 | 8 15 15 15 15 Final Carried 15 | 1 15 14 15 15 Class Distribution -------------------- 100% | Mutant Dominant Class ---------------- Mutant | -10/Materials Mutant | -10/Mines Mutant | -10/Exiles Mutant | -9/Mines Resources | -11 -10 -10 -10 -9 ----------- Run | Yrd Mat Min Exi Min Matter Collected 584 | 225 119 143 . 97 Remotely . | . . . . . Salvage Created 643 | . 324 129 . 190 Parts 34 | . 16 12 . 6 Haulers Intercepted 1 | . 1 . . . Recyclers Shooed 1 | . 1 . . . Parts Field Recycled . | . . . . . Retrieved Matter . | . . . . . Parts Self-Destructed . | . . . . . Prevented . | . . . . . Kills | -11 -10 -10 -10 -9 ------- Run | Yrd Mat Min Exi Min Combat Hostiles Destroyed 19 | . 4 9 . 6 Guns 19 | . 4 9 . 6 Classes Destroyed 6 | . 4 1 . 1 Hauler 1 | . 1 . . . Recycler 1 | . 1 . . . Watcher 1 | . 1 . . . Swarmer 9 | . . 9 . . Grunt 7 | . 4 . . 3 Assembled 3 | . . . . 3 Best Kill Streak 3 | . 3 3 . 3 Combat Bots Only 3 | . 2 3 . 3 Max Kills in Single Turn 1 | . 1 1 . 1 Gunslinging . | . . . . . Exploded . | . . . . . Melee . | . . . . . Uniques/NPCs Destroyed . | . . . . . Combat | -11 -10 -10 -10 -9 -------- Run | Yrd Mat Min Exi Min Hostile Shots Fired 132 | . 17 35 . 80 Missed 32 | . 4 6 . 22 Damage Taken 1128 | . 167 180 . 781 Core 254 | . 19 38 . 197 Absorbed by Shields . | . . . . . Ignored by Resistances 327 | . 49 58 . 220 Core Remaining (%) 100 | 100 . . . . Volleys Fired 51 | . 18 18 . 15 Largest 2 | . 2 2 . 2 Hottest 98 | . 40 98 . 43 Shots Fired 95 | . 36 31 . 28 Gun 95 | . 36 31 . 28 Cannon . | . . . . . Launcher . | . . . . . Special . | . . . . . Kinetic 89 | . 36 25 . 28 Thermal 6 | . . 6 . . Explosive . | . . . . . Electromagnetic . | . . . . . Robot Hit Streak 16 | . 13 16 . 6 Robot Miss Streak 3 | . 1 3 . 1 Penetration Max . | . . . . . Secondary Targets 7 | . . 5 . 2 Max Gunslinging Chain 1 | . . 1 . 1 Shots Hit Robots 70 | . 31 16 . 23 Core Hits 39 | . 15 9 . 15 Critical Kills 1 | . 1 . . . Critical Parts Destroyed . | . . . . . Critical Strikes 1 | . 1 . . . Destroy 1 | . 1 . . . Melee Attacks . | . . . . . Impact . | . . . . . Slashing . | . . . . . Piercing . | . . . . . Sneak Attacks . | . . . . . Combat Hostiles . | . . . . . Follow-up Attacks . | . . . . . Damage Inflicted 858 | . 330 262 . 266 Guns 853 | . 330 262 . 261 Cannons . | . . . . . Explosions . | . . . . . Melee . | . . . . . Ramming 5 | . . . . 5 Kinetic 788 | . 330 197 . 261 Thermal 65 | . . 65 . . Explosive . | . . . . . Electromagnetic . | . . . . . Impact . | . . . . . Slashing . | . . . . . Piercing . | . . . . . Highest Corruption . | . . . . . Average Corruption . | . . . . . Corruption Purged . | . . . . . Corruption Blocked . | . . . . . Overload Shots . | . . . . . Overflow Damage . | . . . . . Projectiles . | . . . . . Explosions . | . . . . . Melee . | . . . . . Knockbacks . | . . . . . Impact . | . . . . . Kinetic . | . . . . . Secondary . | . . . . . Self-Inflicted Damage . | . . . . . Shots . | . . . . . Rammed 2 | . . 1 . 1 Targets Rammed 2 | . . 1 . 1 Kicked . | . . . . . Crushed . | . . . . . Highest Temperature 373 | . 53 373 . 150 Average Temperature 82 | . 21 137 . 61 Received Heat Transfer 186 | . 96 . . 90 Effects 3 | . . 3 . . Shutdowns 1 | . . 1 . . Short Circuit 2 | . . 2 . . Siege Activations . | . . . . . Robots Corrupted . | . . . . . Combat Hostiles . | . . . . . Parts Fried . | . . . . . Impact Corruptions . | . . . . . Robots Melted . | . . . . . Combat Hostiles . | . . . . . Parts Melted . | . . . . . Heat Transferred 111 | . . 111 . . Parts Sabotaged . | . . . . . Parts Stolen . | . . . . . Parts Stripped . | . . . . . Power Chain Reactions . | . . . . . Alert | -11 -10 -10 -10 -9 ------- Run | Yrd Mat Min Exi Min Peak Influence 149 | . 134 149 . 85 Initial 44 | . . 44 . . Average 54 | . 51 58 . 69 Maximum Alert Level . | . . . . . Low Security (%) 100 | 100 100 100 . 100 Level 1 . | . . . . . Level 2 . | . . . . . Level 3 . | . . . . . Level 4 . | . . . . . Level 5 . | . . . . . High Security . | . . . . . Max Security . | . . . . . Squads Dispatched 1 | . . 1 . . Investigation . | . . . . . Extermination . | . . . . . Reinforcement . | . . . . . Assault 1 | . . 1 . . Garrison . | . . . . . Intercept . | . . . . . Searches Triggered . | . . . . . Construction Impeded . | . . . . . Haulers Reinforced . | . . . . . Active Scanning Responses . | . . . . . Cargo Convoy Interrupts . | . . . . . Stealth | -11 -10 -10 -10 -9 --------- Run | Yrd Mat Min Exi Min Distress Signals . | . . . . . Communications Jammed . | . . . . . Distress Signals . | . . . . . Times Spotted 35 | . 5 9 . 21 Peak Tracking Total 14 | . 2 3 . 14 Tactical Retreats 2 | . . . . 2 Traps | -11 -10 -10 -10 -9 ------- Run | Yrd Mat Min Exi Min Traps Triggered 1 | . 1 . . . Indirectly . | . . . . . Trap Hack Attempts . | . . . . . Triggered . | . . . . . Disarmed . | . . . . . Reprogrammed . | . . . . . Reused . | . . . . . Traps Extracted . | . . . . . Installed . | . . . . . Triggered . | . . . . . Machines | -11 -10 -10 -10 -9 ---------- Run | Yrd Mat Min Exi Min Machines Disabled 1 | . . 1 . . Max in Single Turn 1 | . . 1 . . Machines Repaired . | . . . . . Machines Dismantled . | . . . . . Machines Sabotaged . | . . . . . Overloaded Fab Kills . | . . . . . Hacking | -11 -10 -10 -10 -9 --------- Run | Yrd Mat Min Exi Min Machines Accessed 4 | . 1 . 3 . Terminals 1 | . 1 . . . Fabricators . | . . . . . Repair Stations . | . . . . . Recycling Units . | . . . . . Scanalyzers . | . . . . . Garrison Access . | . . . . . Total Hacks 21 | . 3 . 18 . Successful 18 | . . . 18 . Failed 3 | . 3 . . . Catastrophic . | . . . . . Database Lockouts . | . . . . . Manual 4 | . 3 . 1 . Terminals 3 | . 3 . . . Fabricators . | . . . . . Repair Stations . | . . . . . Recycling Units . | . . . . . Scanalyzers . | . . . . . Garrison Access . | . . . . . Terminal Hacks 18 | . . . 18 . Record 17 | . . . 17 . Derelict Proto ID Bank 1 | . . . 1 . Fabricator Hacks . | . . . . . Repair Station Hacks . | . . . . . Recycling Unit Hacks . | . . . . . Scanalyzer . | . . . . . Garrison Access Hacks . | . . . . . Unauthorized Hacks . | . . . . . Terminals . | . . . . . Fabricators . | . . . . . Repair Stations . | . . . . . Recycling Units . | . . . . . Scanalyzers . | . . . . . Garrison Access . | . . . . . Data Cores Recovered . | . . . . . Used . | . . . . . Hacking Detections 1 | . 1 . . . Full Trace Events 1 | . 1 . . . Feedback Events . | . . . . . Feedback Blocked . | . . . . . Robot Schematics Acquired . | . . . . . Robots Built . | . . . . . Authchips . | . . . . . Time . | . . . . . Total Robot Build Rating . | . . . . . Part Schematics Acquired . | . . . . . Parts Built . | . . . . . Authchips . | . . . . . Time . | . . . . . Total Part Build Rating . | . . . . . Parts Repaired . | . . . . . Time . | . . . . . Parts Recycled . | . . . . . Recycled Matter . | . . . . . Retrieved Matter . | . . . . . Retrieved Components . | . . . . . Parts Scanalyzed . | . . . . . Part Schematics Acquired . | . . . . . Parts Damaged . | . . . . . Bothacking | -11 -10 -10 -10 -9 ------------ Run | Yrd Mat Min Exi Min Used RIF Installer . | . . . . . Robots Hacked . | . . . . . Non-combat . | . . . . . Combat . | . . . . . Robot Hacks Applied . | . . . . . Relay Couplers Released . | . . . . . Fabnet Peak Effective % . | . . . . . Robots Rewired . | . . . . . Allies Hacked . | . . . . . Hacks Repelled . | . . . . . Allies | -11 -10 -10 -10 -9 -------- Run | Yrd Mat Min Exi Min Total Allies . | . . . . . Largest Group . | . . . . . Highest-Rated Group . | . . . . . Highest-Rated Ally . | . . . . . Total Orders . | . . . . . Ally Attacks . | . . . . . Total Damage . | . . . . . Kills . | . . . . . Allies Corrupted . | . . . . . Allies Melted . | . . . . . Intel | -11 -10 -10 -10 -9 ------- Run | Yrd Mat Min Exi Min Robot Analysis Total . | . . . . . Derelict Logs Recovered 3 | . . 3 . . Drone Launches . | . . . . . Drone Recoveries . | . . . . . Exploration | -11 -10 -10 -10 -9 ------------- Run | Yrd Mat Min Exi Min Turns Passed 2407 | 87 399 943 777 201 Spaces Moved 1368 | 45 199 543 482 99 Core 3 | 3 . . . . Treads 1365 | 42 199 543 482 99 Legs . | . . . . . Wheels . | . . . . . Hover . | . . . . . Flight . | . . . . . Fastest Speed 50 | 50 160 160 160 160 Average Speed 160 | 152 160 160 160 161 Slowest Speed 240 | 160 160 240 160 240 Overloaded Moves . | . . . . . Propulsion Burnouts . | . . . . . Robots Hopped . | . . . . . Cave-ins Triggered . | . . . . . Exploration Rate (%) 50 | 5 33 98 92 26 Regions Visited 4 Branch Regions 3 Pre-discovered Areas 2 | . . 2 . . Known Exits Taken . | . . . . . Unknown Exits Taken 4 | 1 1 1 1 . Scrap Searched 1 | . . 1 . . Spaces Dug . | . . . . . Terrain Destroyed . | . . . . . Melee . | . . . . . Projectile . | . . . . . AOE . | . . . . . Terrain Rammed . | . . . . . Walls Destroyed . | . . . . . Machines Disabled . | . . . . . Actions | -11 -10 -10 -10 -9 --------- Run | Yrd Mat Min Exi Min Total 1507 | 60 247 591 490 119 Wait 33 | 9 9 15 . . Move 1364 | 44 198 542 481 99 Hop . | . . . . . Pick Up 19 | 1 10 4 3 1 Fast Attach 13 | 6 5 2 . . Attach 2 | . . 1 1 . Detach 4 | . 3 . 1 . Swap 3 | . 2 . . 1 Drop 15 | . 2 7 4 2 Fire 51 | . 18 18 . 15 Melee . | . . . . . Ram . | . . . . . Kick . | . . . . . Crush 2 | . . 1 . 1 Escape Stasis . | . . . . . Rewire 1 | . . 1 . . Trap . | . . . . . Miscellaneous . | . . . . . Route ------- -11/Scrapyard -10/Materials -10/Mines (discovered 4 exits: [*Mat x2] / *Exi / *Sub) -10/Exiles -9/Mines History --------- Turn | Location | Event 4 | -11/Scrapyard | Discovered new exit (range 16) 88 | -11/Scrapyard | Entered Materials 317 | -10/Materials | Build established: Mutant 451 | -10/Materials | Discovered new exit (range 12) 487 | -10/Materials | Entered Mines 521 | -10/Mines | Met a Derelict bent on vengeance 683 | -10/Mines | Learned location of Zion (-6) 795 | -10/Mines | Identified exit to Subcaves 815 | -10/Mines | Found a damaged Exp. Sensor Array with a note attached 820 | -10/Mines | Found Prototype Device 969 | -10/Mines | Discovered new exit (range 8) 1142 | -10/Mines | Met a Derelict testing a Signal Generator 1190 | -10/Mines | Found Signal Generator 1248 | -10/Mines | Discovered new exit (range 5) 1424 | -10/Mines | Deemed a non-threat by the Exiles lab entrance 1424 | -10/Mines | Discovered new exit (range 5) 1430 | -10/Mines | Entered Exiles 1467 | -10/Exiles | Met 8R-AWN 1496 | -10/Exiles | Met EX-HEX 1547 | -10/Exiles | Met EX-BIN 1566 | -10/Exiles | Aligned with FarCom system 1568 | -10/Exiles | Given EX-Vault access code 1608 | -10/Exiles | Opened EX-Vault 1627 | -10/Exiles | Found AWS/Autocannon 1696 | -10/Exiles | Warned to stay clear of 0b10 Research branches 1784 | -10/Exiles | Met EX-DEC 1840 | -10/Exiles | Visited The Gauntlet 2186 | -10/Exiles | Discovered new exit (range 14) 2207 | -10/Exiles | Left Exiles lab with AWS/Autocannon 2207 | -10/Exiles | Entered Mines 2345 | -9/Mines | Assembled infested the area 2365 | -9/Mines | Core integrity fell below 50% 2398 | -9/Mines | Core integrity fell below 20% 2408 | -9/Mines | Destroyed by as-24740 with Assembled Rifle Last Messages --------------- 02362_ D-53 Grenadier unfolds itself. 02363_ The unstable cave ceiling collapses. 02364_ U-05 Engineer builds a Wall. 02366_ D-53 Grenadier destroyed. 02368_ The unstable cave ceiling collapses. 02368_ U-05 Engineer lays Concrete. 02369_ as-56751 destroyed. 02369_ as-16884 destroyed. 02369_ U-05 Engineer lays Concrete. 02370_ U-05 Engineer builds a Wall. 02371_ The unstable cave ceiling collapses. 02372_ D-53 Grenadier destroyed. 02373_ The unstable cave ceiling collapses. 02377_ Slammed into K-01 Serf. 02388_ as-63889 destroyed. 02393_ as-92785 destroyed. 02393_ Switching to secondary target: as-94951. 02398_ as-94951 destroyed. 02401_ Lgt. Treads destroyed. 02401_ Autogun destroyed. Map ----- +----------------------------------------------------+ | ???????# #???###*###??????????????????????? | | ???????# #???# %= [#??????????????????????? | | ???????# ##### * * #??????????????????????? | | ???????# ! #??????????????????????? | | ???????### #### #??????????????????????? | | ??????#### #??# #??????????????????????? | | ?????## ##?# #??????????????????????? | | ????## #?# #??????????????????????? | | ???## #?#######??????????????????????? | | ??## ##??????????????????????????????? | | ??# ###???????????????????????????????? | | ??# #?????????????????????????????????? | | ??# ##????????????????????????????????? | | ??## ###?????####?????????????????????? | | ???# ##???## ##????????????????????? | | ??## ##?## ##???????????????????? | | ??# ### ##??????????????????? | | ??# #??????????????????? | | ??# #??????????????????? | | ??## ##??????????????????? | | ???## ##??????????????????? | | ????## ##?????????????????? | | ?????## ### ## #?????????????????? | | ??????####?####### ##?????????????????? | | ?????????????????## ##??????????????????? | | ?????????????????##@ ##???##??????????????? | | ????????????????## ###### ###????????????? | | ????????????????# % ## ##????##?????? | | ????????????????#aa% # ##??? ##????? | | ????????????????##aa### ### #????? | | ?????????????????# ## %] ##???? | | ?????????????????#%## # % | | ?????????????????#a### # ### | | ?????????????????# #??????###### | | ?????????????????##### # #???????????? | | ?????????????????????#### ###???????????? | | ????????????????????????# ##?????????????? | | ????????????????????????# #?????????????? | | ???????????????????????? #?????????????? | | ???????????????????????? #?????????????? | | ??????????????????????? ?????????????? | | ???????????????????????## #????????????? | | ????????????????????????## ????????????? | | ?????????????????????????? #???????????? | | ??????????????????????????# #???????????? | | ???????????????????????????#####???????????? | | ???????????????????????????????????????????? | | ???????????????????????????????????????????? | | ???????????????????????????????????????????? | | ???????????????????????????????????????????? | +----------------------------------------------------+ Best States ------------- Heat Dissipation 25 Energy Generation 14 Energy Capacity 250 Matter Stores 300 Matter Capacity 300 Sight Range 16 Terrain Scan Density 10 Armor Coverage 150 Resistance: KI 20 Resistance: TH 20 Resistance: EX 20 Resistance: EM 20 Resistance: I 20 Resistance: S 20 Resistance: P 20 Evasion (%) 40 Recoil Reduction 2 Offensive Hacking 10 Item Schematics ----------------- None Robot Schematics ------------------ None Fabricated ------------ Nothing Alien Tech Used ----------------- None Achievements -------------- None Challenges ------------ None Game ------ Seed GrenadeBeamDisintegrator Manual? 0 Play Time 00:19:34 Cumulative 28.4 hours Start 2024.07.07 @ 21:11:41 End 2024.07.07 @ 21:32:39 Sessions 1 Manual Loads 0 Difficulty Adventurer Special Mode None Game No. 23 Rogue 0 Adventurer 23 Explorer 0 Win Type - Total 0 Types 0/0/0/0/0/0/0/0/0 Lore% 18 Gallery% 36 Achievement% 26 Wizard Run 0 Options --------- Layout 2 ASCII 0 Keyboard 1 Movement Numpad Keybinds 0 Fullscreen 1 Font 24/Tamsyn Map View 50x44 Zoom Use 0% Tactical HUD 1 Map Filters NONE Filters NONE Steam 1 RUN: 4f7513b7-cbf1-453c-a282-18ea0af0fa85